bitfinex/quotes_ETHUSD_20250414
["timestamp","ask_amount","ask_price","bid_price","bid_amount"]
[1744642967729,1.5066,1661.8,1661.4,12.03759]
[1744642968055,1.5066,1661.8,1661.0,0.602083]
[1744642968259,6.22083,1660.9,1660.8,1e-05]
[1744642968429,6.02337,1660.2,1660.0,0.4084809]
[1744642968621,6.02476,1659.9,1659.1,6.07735]
[1744642968821,3.0,1660.1,1659.1,6.07735]
[1744642968822,6.02493,1659.8,1659.2,6.02677]
[1744642969055,4.97897724,1660.6,1659.1,0.05]
[1744642969361,47.063,1661.0,1660.3,6.02292]
[1744642969362,6.02058,1661.0,1660.3,6.02292]
[1744642969655,1.5876,1661.5,1660.8,6.02099]
[1744642969858,1.5876,1661.5,1660.6,15.95889]
[1744642970035,1.5876,1661.9,1661.6,6.01809]
[1744642970433,0.901612,1662.1,1661.6,6.01802]
[1744642970756,7.56262,1662.3,1661.2,1.5244]
[1744642970923,6.0185,1661.6,1661.1,6.02006]
[1744642971123,9.941,1662.0,1660.9,4.97897724]
[1744642971321,9.941,1662.0,1660.8,4.5244]
[1744642971322,0.05,1662.4,1662.1,6.01639]
[1744642971521,0.05,1662.4,1662.3,6.01576]
[1744642971961,0.05,1662.4,1662.1,6.01623]
[1744642972124,0.05,1662.4,1662.2,6.01591]
[1744642972462,0.05,1662.4,1662.3,6.01576]
[1744642972621,0.05,1662.4,1662.3,6.01496]
[1744642972826,0.05,1662.4,1662.2,7.68121]
[1744642973036,0.05,1662.4,1661.7,1.6653]
[1744642973239,0.05,1662.4,1661.4,6.01882]
[1744642973240,6.01701,1662.0,1661.4,6.01882]
[1744642973437,3.0,1662.1,1661.3,1.5396]
[1744642973727,6.01641,1662.2,1661.7,6.01792]
[1744642973931,1.5599,1662.4,1662.0,6.01665]
[1744642974142,0.05,1662.4,1661.7,0.601792]
[1744642974361,0.05,1662.4,1662.2,6.0159]
[1744642974661,0.05,1662.4,1662.3,6.01576]
[1744642974860,1e-05,1662.4,1662.3,12.54321216]
[1744642975029,1e-05,1662.4,1662.3,17.78284309]
[1744642975230,6.01254,1663.2,1662.7,6.01423]
[1744642975425,0.05,1663.4,1663.0,6.01288]
[1744642975662,0.05,1663.4,1662.3,6.01557]
[1744642975966,6.01412,1662.8,1662.2,6.0159]
[1744642976261,6.01308,1663.1,1662.5,6.01478]
[1744642976460,6.01354,1663.0,1662.5,6.01478]
[1744642976759,6.01395,1662.8,1662.0,10.247]
[1744642976934,6.01507,1662.5,1662.0,6.01666]
[1744642977136,6.01689,1662.0,1661.5,6.01836]
[1744642977336,6.01689,1662.0,1660.8,6.02091]
[1744642977337,3.55,1662.1,1660.3,6.023]
[1744642977550,9.01819,1661.7,1661.2,6.01943]
[1744642977750,6.0183,1661.6,1661.2,6.01943]
[1744642977977,0.55,1661.8,1661.4,6.01896]
[1744642978180,6.0174,1661.9,1661.4,6.01896]
[1744642978480,6.01791,1661.8,1661.4,0.601896]
[1744642978977,12.03576,1661.8,1661.3,6.01914]
[1744642979207,6.01785,1661.8,1661.4,6.0188]
[1744642979343,0.55,1662.1,1661.3,6.01933]
[1744642979541,2.06715822,1662.3,1661.3,0.06018842]
[1744642979801,6.01894,1661.5,1660.7,6.02155]
[1744642979989,6.0192,1661.4,1660.9,6.02055]
[1744642980294,6.01699,1662.0,1661.0,0.06020216]
[1744642980496,1.6195,1662.3,1661.2,1.621]
[1744642980644,1.5407,1662.8,1661.7,6.01793]
[1744642980843,6.06189,1663.4,1662.1,1.621]
[1744642981102,6.01352,1663.0,1662.5,6.01487]
[1744642981253,1.5407,1663.3,1662.6,6.01467]
[1744642981453,6.06212,1663.4,1662.7,11.87]
[1744642981771,0.05,1663.4,1662.7,1.621]
[1744642982286,0.05,1663.4,1663.2,6.01237]
[1744642982490,0.05,1663.4,1662.7,1.621]
[1744642982890,6.0139,1662.9,1662.4,6.01524]
[1744642983193,0.05,1663.4,1663.3,6.01214]
[1744642983380,6.01271,1663.2,1662.7,1.621]
[1744642983579,0.601271,1663.2,1662.7,1.621]
[1744642983894,0.05,1663.4,1663.3,6.01214]
[1744642984196,0.1428643,1664.1,1663.4,6.01178]
[1744642984492,0.1428643,1664.1,1663.8,6.01018]
[1744642984676,0.1428643,1664.1,1663.7,6.01069]
[1744642984884,0.1428643,1664.1,1664.0,6.00961]
[1744642985181,0.1428643,1664.1,1664.0,7.51071]
[1744642985817,0.1428643,1664.1,1664.0,16.38576733]
[1744642986103,0.1428643,1664.1,1664.0,13.97801133]
[1744642986324,0.1428643,1664.1,1664.0,7.51071]
[1744642986601,0.1428643,1664.1,1664.0,1.5011]
[1744642986767,0.1428643,1664.1,1664.0,7.57079409]
[1744642986970,0.1428643,1664.1,1664.0,7.51071]
[1744642987266,0.1428643,1664.1,1664.0,1.5011]
[1744642987664,0.1428643,1664.1,1664.0,1.56118272]
[1744642987857,0.1428643,1664.1,1663.9,1.5107]
[1744642988058,6.01088,1663.7,1663.5,1.5107]
[1744642988305,0.601088,1663.6,1663.1,1.5107]
[1744642988508,0.1428643,1664.1,1663.3,6.01196]
[1744642988671,0.1428643,1664.1,1663.1,1.5107]
[1744642988863,6.01096,1663.7,1663.2,6.01229]
[1744642989207,0.1428643,1664.1,1663.8,6.01009]
[1744642989508,0.1428643,1664.1,1663.4,6.01159]
[1744642989815,6.01009,1663.9,1663.5,6.01141]
[1744642990106,1.201973,1663.9,1663.1,1.5107]
[1744642990286,0.1428643,1664.1,1663.7,6.01051]
[1744642990287,6.1521243,1664.1,1663.7,6.01051]
[1744642990467,6.1521243,1664.1,1663.7,6.01054]
[1744642990795,0.1428643,1664.1,1663.8,6.0103]
[1744642991016,0.1428643,1664.1,1664.0,6.00961]
[1744642991674,6.1523143,1664.1,1663.7,6.01053]
[1744642991995,0.1428643,1664.1,1663.6,6.01104]
[1744642992160,6.00996,1664.0,1663.6,6.01084]
[1744642992362,0.1428643,1664.1,1663.7,6.01054]
[1744642992576,0.1428643,1664.1,1663.9,6.00965]
[1744642992787,0.1428643,1664.1,1664.0,6.00961]
[1744642993419,0.1428643,1664.1,1663.9,6.00965]
[1744642993624,0.1428643,1664.1,1663.9,6.00961]
[1744642993828,0.1428643,1664.1,1664.0,6.06969501]
[1744642994129,6.00961,1664.0,1663.2,1.6628]
[1744642994305,12.0224,1663.6,1663.2,1.6628]
[1744642994476,6.01049,1663.8,1663.2,1.6628]
[1744642994673,0.1428643,1664.1,1663.2,1.6628]
[1744642994876,6.00978,1664.0,1663.5,6.01119]
[1744642995078,6.01087,1663.7,1663.2,7.67513]
[1744642995318,0.1428643,1664.1,1663.2,1.6628]
[1744642995484,0.1428643,1664.1,1663.3,6.01214]
[1744642995805,0.1428643,1664.1,1663.8,6.01028]
[1744642996135,0.1428643,1664.1,1663.8,12.02039]
[1744642996427,0.1428643,1664.1,1664.0,6.00961]
[1744642996609,0.1428643,1664.1,1663.2,0.81301013]
[1744642996780,6.01046,1663.8,1663.4,7.59512]
[1744642997100,0.1428643,1664.1,1663.8,6.01027]
[1744642997277,6.00986,1664.0,1663.6,6.01105]
[1744642997478,6.00986,1664.0,1663.7,6.01065]
[1744642997716,6.01003,1663.9,1663.4,12.14348582]
[1744642997920,6.01003,1663.9,1663.5,6.01136]
[1744642998219,12.02266,1663.6,1663.3,10.549]
[1744642998419,6.01038,1663.8,1663.4,6.01177]
[1744642998623,0.75804873,1664.1,1663.5,6.01118]
[1744642998831,6.01013,1663.9,1663.5,6.01136]
[1744642999134,6.01096,1663.7,1663.3,16.56097]
[1744642999336,6.01006,1663.9,1663.6,6.01099]
[1744642999621,6.1521243,1664.1,1663.7,12.02123]
[1744642999795,0.1428643,1664.1,1663.4,10.549]
[1744642999978,6.1523943,1664.1,1663.8,6.01026]
[1744643000185,0.1428643,1664.1,1663.4,10.549]
[1744643000382,6.01142,1663.5,1663.0,12.0552]
[1744643000583,6.01289,1663.1,1662.8,52.87493]
[1744643000821,6.01289,1663.1,1662.8,46.861]
[1744643000822,6.01309,1663.1,1662.8,46.861]
[1744643001010,6.01376,1662.9,1662.5,21.11238582]
[1744643001202,6.015,1662.6,1662.4,1.5062]
[1744643001432,1.6368,1662.8,1662.0,1.5019]
[1744643001585,6.01541,1662.4,1662.0,13.53516]
[1744643001897,6.01534,1662.5,1662.1,6.01632]
[1744643001898,6.01509,1662.5,1662.1,6.01632]
[1744643002082,6.01495,1662.6,1662.2,6.01586]
[1744643002282,0.601495,1662.6,1662.2,6.01586]
[1744643002538,1.5688,1663.1,1662.3,0.06015347]
[1744643002833,13.5949,1663.1,1662.7,6.01397]
[1744643002985,7.58182,1663.1,1662.6,6.01453]
[1744643003335,7.58182,1663.1,1662.4,16.56329]
[1744643003336,6.771202,1663.1,1662.4,16.56329]
[1744643003531,0.758182,1663.1,1662.4,16.56338]
[1744643003759,6.01545,1662.4,1662.0,7.5185]
[1744643003915,6.01467,1662.6,1661.7,18.1479]
[1744643004224,6.01669,1662.1,1661.7,7.59822]
[1744643004424,6.01613,1662.2,1661.6,0.005]
[1744643004624,0.601467,1662.5,1661.6,0.005]
[1744643004933,1.5137,1662.7,1661.7,6.01779]
[1744643005084,6.01475,1662.6,1662.1,6.0162]
[1744643005291,6.01521,1662.5,1662.0,6.01683]
[1744643005487,1.5137,1662.7,1661.9,10.55]
[1744643005824,6.01472,1662.6,1662.2,6.01595]
[1744643005984,7.52834,1662.7,1662.2,6.01612]
[1744643006332,6.0153,1662.5,1661.9,10.55]
[1744643006619,6.0147,1662.6,1661.8,7.55704]
[1744643006822,1.5748,1663.0,1662.2,1.5395]
[1744643007034,6.01449,1662.7,1662.3,6.01557]
[1744643007318,1.5748,1663.0,1662.1,6.01648]
[1744643007541,6.01383,1662.9,1662.2,6.617698]
[1744643007828,12.0275,1662.9,1662.5,6.0149]
[1744643008126,12.0275,1662.9,1662.0,6.45785303]
[1744643008127,6.01359,1662.9,1662.0,6.45785303]
[1744643008324,1.5748,1663.0,1662.0,6.45785303]
[1744643008618,6.01394,1662.9,1662.5,6.01483]
[1744643008790,7.374118,1662.9,1662.5,6.01483]
[1744643009182,1.5748,1663.0,1662.8,6.01395]
[1744643009384,6.01344,1663.0,1662.6,0.06014661]
[1744643009742,12.02753,1662.9,1662.5,6.01486]
[1744643010033,6.01365,1662.9,1662.4,6.01524]
[1744643010242,6.01276,1663.2,1662.7,6.01403]
[1744643010385,6.614316,1663.1,1662.7,6.01403]
[1744643010586,6.01364,1662.9,1662.5,6.01502]
[1744643010789,1.6662,1662.7,1661.7,7.63799]
[1744643010986,6.01733,1661.9,1661.6,0.005]
[1744643011209,8.23253,1662.2,1661.6,0.005]
[1744643011409,12.03549,1661.8,1661.6,0.005]
[1744643011587,12.03419,1662.0,1661.6,6.02311]
[1744643011787,12.03343,1662.1,1661.7,6.01768]
[1744643011996,6.01715,1662.0,1661.6,6.02313]
[1744643012201,7.68245,1662.2,1661.8,6.01735]
[1744643012402,2.434445,1662.2,1661.9,6.01704]
[1744643012618,2.434445,1662.2,1661.6,1.5306]
[1744643012619,8.450895,1662.2,1661.6,1.5306]
[1744643012832,1.6147,1662.5,1661.7,6.01773]
[1744643012994,6.01774,1661.8,1661.6,0.005]
[1744643013200,6.01793,1661.7,1661.6,0.005]
[1744643014329,11.20003,1661.7,1661.6,1e-05]
[1744643014530,13.166837,1661.7,1661.6,1e-05]
[1744643015093,12.616837,1661.7,1661.6,1e-05]
[1744643015517,1.6321,1661.7,1661.6,1e-05]
[1744643015691,1.5112,1662.0,1661.7,6.01781]
[1744643016003,6.01785,1661.8,1661.6,1e-05]
[1744643016207,6.01576,1662.3,1661.6,1e-05]
[1744643016393,6.01649,1662.1,1661.8,6.01723]
[1744643016743,6.0159,1662.3,1661.9,6.01707]
[1744643016897,12.03188,1662.3,1661.9,6.01707]
[1744643017093,1.5112,1662.4,1661.7,1.573]
[1744643017417,6.01481,1662.6,1662.2,6.01606]
[1744643017651,6.01481,1662.6,1662.1,6.01648]
[1744643017652,1.15185807,1662.6,1662.1,6.01634]
[1744643017851,5.50377074,1662.7,1662.2,0.06015739]
[1744643018036,5.50377074,1662.7,1661.9,6.0172]
[1744643018220,3.92487074,1662.7,1662.0,11.22472]
[1744643018421,3.92487074,1662.7,1662.3,6.01544]
[1744643018672,3.92487074,1662.7,1662.4,6.01533]
[1744643018879,3.92487074,1662.6,1662.4,6.01528]
[1744643019169,3.92487074,1662.6,1662.0,0.60172]
[1744643019349,6.01627,1662.2,1661.8,6.01738]
[1744643019551,6.01631,1662.2,1661.8,6.01741]
[1744643019715,6.01699,1662.0,1661.7,1.5469]
[1744643020070,13.60442,1661.9,1661.6,1e-05]
[1744643020270,6.0166,1662.1,1661.6,1e-05]
[1744643020471,1.5698,1662.2,1661.7,6.01765]
[1744643020672,6.01705,1662.0,1661.6,6.01828]
[1744643020883,6.01705,1662.0,1661.6,12.801518]
[1744643021171,6.01705,1662.0,1661.6,6.783248]
[1744643021472,6.01661,1662.1,1661.8,6.01752]
[1744643021769,7.58593,1662.2,1661.8,12.03493]
[1744643022068,7.58593,1662.2,1661.8,6.01741]
[1744643022272,6.01581,1662.3,1661.6,0.765118]
[1744643022570,12.03188,1662.3,1661.9,6.01702]
[1744643022780,6.01581,1662.3,1661.9,12.0341]
[1744643022985,6.01581,1662.3,1661.9,6.01701]
[1744643023143,7.91935707,1662.5,1661.6,6.783298]
[1744643023345,1.5115,1662.5,1662.1,6.01616]
[1744643023645,6.01472,1662.6,1662.1,6.01616]
[1744643023875,6.01472,1662.6,1662.2,6.01597]
[1744643024385,6.01623,1662.2,1661.8,6.01721]
[1744643024590,4.6383,1662.7,1661.9,6.01702]
[1744643024892,4.6383,1662.7,1661.8,6.01745]
[1744643024893,6.01625,1662.2,1661.8,6.01745]
[1744643025053,6.01503,1662.5,1661.6,1e-05]
[1744643025054,6.01733,1661.9,1661.6,1e-05]
[1744643025259,6.01689,1662.0,1661.6,6.0181]
[1744643025584,6.01671,1662.1,1661.6,6.01827]
[1744643025787,1.5925,1662.2,1661.6,1e-05]
[1744643025991,6.01701,1662.0,1661.6,12.03629]
[1744643026301,7.60875,1662.2,1661.8,6.0173]
[1744643026440,6.0177,1661.8,1661.6,1e-05]
[1744643026644,6.01793,1661.7,1661.6,1e-05]
[1744643026841,7.54453,1661.7,1661.6,1e-05]
[1744643029148,6.01743,1661.9,1661.6,1e-05]
[1744643029455,0.760875,1662.2,1661.6,6.01826]
[1744643029653,6.01648,1662.1,1661.6,1e-05]
[1744643029849,0.601648,1662.0,1661.6,1e-05]
[1744643030089,6.01769,1661.8,1661.6,1e-05]
[1744643030300,12.03549,1661.8,1661.6,1e-05]
[1744643030506,6.01728,1661.9,1661.6,1e-05]
[1744643030670,6.01724,1661.9,1661.6,6.01822]
[1744643030871,2.02743,1662.6,1661.7,1.665]
[1744643031070,2.02743,1662.6,1661.6,0.0601931]
[1744643031071,5.48847074,1662.9,1662.2,6.01612]
[1744643031264,3.92487074,1662.5,1662.4,6.01535]
[1744643032089,3.92487074,1662.5,1662.4,7.63795]
[1744643032257,3.92487074,1662.5,1662.3,6.01558]
[1744643032605,3.92487074,1662.5,1662.4,6.01539]
[1744643033004,3.92487074,1662.5,1662.2,6.01607]
[1744643033213,5.10233196,1662.9,1662.8,6.01395]
[1744643033563,5.10233196,1662.9,1662.7,6.01429]
[1744643034107,6.01308,1663.1,1662.7,6.01395]
[1744643034108,6.01319,1663.1,1662.7,6.01395]
[1744643034311,6.01281,1663.2,1662.8,6.01378]
[1744643034606,6.01188,1663.4,1663.0,6.01307]
[1744643034808,6.01306,1663.1,1662.7,6.01429]
[1744643035006,6.01251,1663.2,1662.8,6.01376]
[1744643035216,6.01217,1663.3,1662.9,6.01337]
[1744643035415,12.02454,1663.3,1662.9,6.01337]
[1744643035620,6.01181,1663.4,1662.8,6.01395]
[1744643035921,6.01234,1663.3,1662.9,6.01337]
[1744643036075,6.01234,1663.3,1662.8,8.205495]
[1744643036076,6.01299,1663.1,1662.8,8.205495]
[1744643036280,12.02608,1663.1,1662.8,1.5902]
[1744643036472,6.01178,1663.4,1662.5,12.15996495]
[1744643036707,6.01339,1663.0,1662.6,6.01446]
[1744643037012,6.01178,1663.4,1662.6,6.01451]
[1744643037314,6.01253,1663.2,1662.6,0.06014088]
[1744643037484,6.01344,1663.0,1662.6,6.01453]
[1744643037709,0.601178,1663.3,1662.5,1.5872]
[1744643037710,6.01251,1663.2,1662.8,6.01394]
[1744643037908,7.58258,1663.5,1662.7,6.01396]
[1744643038117,6.01138,1663.6,1663.1,6.01258]
[1744643038441,7.5786,1664.1,1663.3,6.01197]
[1744643038653,6.01054,1663.8,1663.4,6.01164]
[1744643038814,6.00975,1664.0,1663.6,6.0109]
[1744643039018,12.2403,1664.4,1663.5,6.01137]
[1744643039019,18.2486,1664.4,1663.5,6.01137]
[1744643039340,6.00981,1664.0,1663.6,6.01099]
[1744643039540,6.00889,1664.2,1663.8,6.01004]
[1744643039700,5.15233196,1664.4,1663.9,0.06009826]
[1744643039899,5.15233196,1664.4,1664.1,6.009]
[1744643040105,11.16052196,1664.4,1664.0,6.00942]
[1744643040428,5.15233196,1664.4,1664.1,0.06009209]
[1744643040624,5.15233196,1664.4,1663.8,7.6569]
[1744643040834,11.67573516,1664.4,1663.8,1.6466]
[1744643040999,5.15233196,1664.4,1663.8,1.6466]
[1744643041200,11.16064196,1664.4,1664.0,6.00944]
[1744643041407,11.16064196,1664.4,1664.0,12.01888]
[1744643042032,5.15233196,1664.4,1664.1,6.00923]
[1744643042246,5.15233196,1664.4,1664.1,6.06916454]
[1744643042446,5.15233196,1664.4,1664.2,6.00873]
[1744643042650,5.15233196,1664.4,1664.3,6.00853]
[1744643042865,5.15233196,1664.4,1664.1,6.00903]
[1744643043068,6.00905,1664.2,1663.8,12.21486495]
[1744643043233,0.05,1664.4,1664.0,6.00943]
[1744643043546,6.05834,1664.4,1664.1,6.00924]
[1744643043735,6.05834,1664.4,1664.0,12.01883]
[1744643043949,6.05834,1664.4,1664.0,6.0094]
[1744643044246,6.05834,1664.4,1664.3,6.00853]
[1744643044247,0.05,1664.4,1664.3,6.00853]
[1744643044557,0.05,1664.4,1664.3,7.59433]
[1744643045084,0.05,1664.4,1664.3,1.5858]
[1744643045219,6.00883,1664.3,1664.0,1.6273]
[1744643045418,0.05,1664.4,1664.0,1.68738644]
[1744643045621,0.05,1664.4,1663.8,4.55796495]
[1744643045974,0.05,1664.4,1663.9,0.06008651]
[1744643046271,0.05,1664.4,1663.8,6.01032]
[1744643046272,6.00936,1664.1,1663.8,6.01032]
[1744643046434,6.00936,1664.1,1663.6,6.63004192]
[1744643046435,6.00992,1664.0,1663.6,7.63835]
[1744643046639,6.00853,1664.3,1663.6,1.6273]
[1744643046862,0.655802,1664.4,1663.6,1.6273]
[1744643047019,6.00986,1664.0,1663.6,12.19631495]
[1744643047221,6.0112,1663.6,1663.3,1.5969]
[1744643047563,12.02326,1663.5,1663.1,16.58347495]
[1744643047722,6.01094,1663.7,1663.2,6.07257649]
[1744643047924,6.01094,1663.7,1663.1,4.55796495]
[1744643047925,6.01005,1663.9,1663.1,4.55796495]
[1744643048119,6.01005,1663.9,1663.0,1.5637]
[1744643048120,6.01081,1663.7,1663.0,7.57662]
[1744643048324,6.0101,1663.9,1663.3,4.55796495]
[1744643048562,6.01136,1663.6,1663.3,4.55796495]
[1744643048725,1.5519,1664.2,1663.1,6.01281]
[1744643048726,6.01178,1663.4,1663.1,6.01281]
[1744643049249,6.55951,1664.1,1663.1,6.01281]
[1744643049250,1.6463,1664.5,1663.8,6.01033]
[1744643049418,6.00867,1664.3,1663.7,4.6180588]
[1744643049624,6.00867,1664.3,1663.9,6.0098]
[1744643050256,6.3196033,1664.6,1664.3,6.00853]
[1744643050257,0.3121333,1664.6,1664.3,6.00853]
[1744643050560,6.05829,1664.4,1664.2,1.5914]
[1744643050750,6.05823,1664.4,1664.1,6.00922]
[1744643051062,6.00866,1664.3,1664.0,6.00956]
[1744643051229,0.05,1664.4,1663.9,1.5914]
[1744643051424,6.00895,1664.2,1663.9,1.5914]
[1744643051727,6.00906,1664.2,1663.8,6.0102]
[1744643051926,6.01108,1663.6,1663.3,7.5986]
[1744643052172,6.01069,1663.7,1663.1,4.55796495]
[1744643052336,6.01286,1663.1,1662.8,4.55796495]
[1744643052534,6.01337,1663.0,1662.8,5.61518745]
[1744643052757,6.01337,1663.0,1662.7,7.5939]
[1744643052956,6.01254,1663.2,1662.8,10.57178495]
[1744643053155,6.01142,1663.5,1663.1,6.0128]
[1744643053355,7.62939,1663.6,1662.8,4.55796495]
[1744643053356,6.01254,1663.2,1662.8,4.55796495]
[1744643053559,6.01294,1663.1,1662.8,4.55796495]
[1744643053757,6.01251,1663.2,1662.8,6.01379]
[1744643054071,6.01296,1663.1,1662.7,1.5796]
[1744643054274,11.9236,1663.9,1662.9,4.55796495]
[1744643054457,6.01103,1663.7,1663.2,6.01243]
[1744643054767,6.01164,1663.5,1663.1,6.01281]
[1744643054974,6.01119,1663.6,1663.2,6.01232]
[1744643055142,6.01119,1663.6,1663.2,12.02464]
[1744643055333,6.01056,1663.8,1663.3,6.01211]
[1744643055534,6.01145,1663.5,1663.2,7.33692895]
[1744643055769,6.01145,1663.5,1663.2,6.13446495]
[1744643056076,6.01109,1663.6,1663.3,6.01209]
[1744643056276,1.5877,1664.3,1663.2,6.13446495]
[1744643056433,6.01122,1663.6,1663.2,6.13446495]
[1744643056631,6.01074,1663.7,1663.3,6.01195]
[1744643056939,6.01074,1663.7,1663.3,6.07206412]
[1744643057347,6.00963,1664.0,1663.5,4.55796495]
[1744643057573,1.5877,1664.3,1663.8,4.55796495]
[1744643057757,6.00891,1664.2,1663.8,10.56803495]
[1744643057962,12.01735,1664.3,1663.8,10.56828495]
[1744643058158,12.0174,1664.3,1663.9,6.00997]
[1744643058365,1.20674,1664.3,1663.8,10.56804495]
[1744643058576,0.05,1664.4,1663.9,0.06009082]
[1744643058777,0.05,1664.4,1664.0,6.00938]
[1744643059175,6.00858,1664.3,1663.9,22.00464]
[1744643059353,6.05849,1664.4,1664.0,6.00953]
[1744643059740,12.0669,1664.4,1664.0,6.00953]
[1744643059939,7.2651,1664.4,1664.0,6.00947]
[1744643060164,7.26487,1664.4,1663.9,9.985]
[1744643060374,6.00901,1664.2,1663.9,9.985]
[1744643060548,12.01814,1664.2,1663.9,9.985]
[1744643060969,6.00901,1664.2,1663.9,9.985]
[1744643061170,6.00938,1664.1,1663.9,9.985]
[1744643061385,6.00901,1664.2,1663.9,9.985]
[1744643061590,6.00857,1664.3,1663.9,9.985]
[1744643061886,6.00905,1664.2,1663.9,9.985]
[1744643062093,6.00961,1664.0,1663.9,9.985]
[1744643062397,6.00941,1664.1,1663.7,12.16194495]
[1744643062698,6.00941,1664.1,1663.7,6.21136433]
[1744643062879,6.00941,1664.1,1663.7,12.16179495]
[1744643063058,6.01033,1663.8,1663.4,6.01161]
[1744643063390,0.600905,1664.2,1663.5,4.61807517]
[1744643063595,12.01732,1664.3,1663.9,7.59763]
[1744643063752,6.00854,1664.3,1664.0,6.00949]
[1744643064194,12.01726,1664.3,1663.9,17.58186]
[1744643064356,12.01726,1664.3,1663.9,23.59166]
[1744643064357,6.00854,1664.3,1663.9,23.59166]
[1744643064689,0.05,1664.4,1664.0,6.0095]
[1744643064892,0.05,1664.4,1664.3,6.00853]
[1744643065252,0.05,1664.4,1664.3,7.60513]
[1744643065447,0.05,1664.4,1664.3,1.5966]
[1744643065687,0.05,1664.4,1664.3,1.6566796]
[1744643065861,0.05,1664.4,1664.3,7.60513]
[1744643066185,0.05,1664.4,1664.3,9.02658732]
[1744643066484,0.05,1664.4,1664.3,8.966514]
[1744643066685,0.05,1664.4,1664.3,7.60513]
[1744643067386,6.05817,1664.4,1664.0,1.6147]
[1744643067593,6.00892,1664.2,1664.0,1.6147]
[1744643067815,6.05817,1664.4,1664.0,1.6147]
[1744643068178,12.0666,1664.4,1664.0,7.62416]
[1744643068379,0.05,1664.4,1664.0,1.6147]
[1744643068613,0.05,1664.4,1664.2,6.00862]
[1744643068820,0.05,1664.4,1664.2,6.00876]
[1744643069197,0.05,1664.4,1664.3,6.00853]
[1744643070218,0.05,1664.4,1664.3,10.56649495]
[1744643070420,0.05,1664.4,1663.7,1.5649]
[1744643070625,0.05,1664.4,1662.5,0.2]
[1744643070626,6.01017,1663.9,1663.5,6.01118]
[1744643070787,6.0103,1663.9,1663.5,6.01136]
[1744643071185,6.01026,1663.9,1663.5,6.07140571]
[1744643071389,6.00967,1664.0,1663.7,6.01058]
[1744643071609,13.67469,1664.1,1663.7,6.01056]
[1744643071925,7.66522,1664.1,1663.7,12.02109]
[1744643072128,6.00981,1664.0,1663.7,6.01054]
[1744643072425,6.00981,1664.0,1663.4,7.57661]
[1744643072426,6.01008,1663.9,1663.5,6.01113]
[1744643072625,6.01008,1663.9,1663.6,6.07103174]
[1744643072827,6.00964,1664.0,1663.7,6.01052]
[1744643073235,6.01083,1663.7,1663.4,1.5649]
[1744643073545,1.5717,1664.4,1663.6,6.01106]
[1744643073702,6.00853,1664.3,1663.7,6.01045]
[1744643073902,6.00976,1664.0,1663.6,12.0219]
[1744643074204,6.00909,1664.2,1663.8,6.01028]
[1744643074404,12.01831,1664.2,1663.8,6.01028]
[1744643074611,6.00964,1664.0,1663.7,6.01064]
[1744643075029,7.57988,1664.4,1663.7,1.202165]
[1744643075207,0.05,1664.4,1664.3,6.00853]
[1744643075927,0.05,1664.4,1664.3,12.23716944]
[1744643076247,0.05,1664.4,1664.3,7.61913]
[1744643076428,0.05,1664.4,1664.3,12.23716506]
[1744643076630,0.05,1664.4,1664.3,21.85209495]
[1744643076816,0.05,1664.4,1664.3,11.2856]
[1744643077335,0.05,1664.4,1664.0,6.14366495]
[1744643077542,0.05,1664.4,1664.1,6.00924]
[1744643077753,0.655797,1664.4,1663.9,9.675]
[1744643078038,2.160997,1664.4,1663.8,6.01019]
[1744643078197,6.00953,1664.1,1663.7,1.5857]
[1744643078397,6.00889,1664.2,1663.7,1.5857]
[1744643078604,6.00982,1664.0,1663.7,1.5857]
[1744643079241,6.01016,1663.9,1663.5,15.68639]
[1744643079547,6.01016,1663.9,1663.2,6.01238]
[1744643079548,12.0216,1663.7,1663.2,6.01238]
[1744643079847,12.0216,1663.7,1663.3,6.01212]
[1744643080621,6.01111,1663.6,1663.3,6.01212]
[1744643081027,6.01111,1663.6,1663.2,12.02476]
[1744643081224,6.01111,1663.6,1663.2,12.1573796]
[1744643081563,0.55,1663.7,1663.0,6.01315]
[1744643081767,0.55,1663.7,1662.5,1.5857]
[1744643081768,6.01433,1662.7,1662.5,1.5857]
[1744643081971,6.01397,1662.8,1662.2,1.5857]
[1744643082136,7.51849,1663.0,1662.6,6.01458]
[1744643082335,1.5658,1663.3,1662.7,6.0141]
[1744643082542,6.01388,1662.9,1662.4,6.01507]
[1744643082731,6.01395,1662.8,1662.4,6.616577]
[1744643082957,6.01395,1662.8,1662.4,12.631797]
[1744643083308,12.02675,1663.0,1662.6,6.01466]
[1744643083458,6.01326,1663.0,1662.6,6.01466]
[1744643083658,12.02672,1663.0,1662.6,6.01466]
[1744643083956,6.01372,1662.9,1662.6,9.676]
[1744643084201,1.5658,1663.3,1662.8,6.01361]
[1744643084353,6.0118,1663.4,1662.9,6.01326]
[1744643084559,12.0231,1663.5,1663.1,6.01273]
[1744643084994,6.01178,1663.4,1663.0,6.01322]
[1744643085306,6.01178,1663.4,1663.0,6.01303]
[1744643085459,12.02378,1663.4,1663.0,6.01303]
[1744643085660,6.01147,1663.5,1663.1,6.01283]
[1744643086061,6.01157,1663.5,1663.0,6.01313]
[1744643086401,1.5774,1663.6,1662.7,4.5192]
[1744643086694,6.01178,1663.4,1662.7,1.5192]
[1744643086901,6.01364,1662.9,1662.6,6.0144]
[1744643087079,6.01416,1662.8,1662.4,12.70636195]
[1744643087402,6.01416,1662.8,1662.4,17.826397]